[Event "*** Titled Tuesday Blitz"]
[Site "Chess.com"]
[Date "2018.06.05"]
[Round "7"]
[White "lupta_robin"]
[Black "murmah2003"]
[Result "0-1"]
[WhiteElo "2443"]
[BlackElo "2495"]
[TimeControl "180+2"]
[EndTime "14:43:00 PDT"]
[Termination "murmah2003 won by resignation"]

1. e4 {[%clk 0:03:01.9]} 1... g6 {[%clk 0:03:00.1]} 2. d4 {[%clk 0:03:02.2]}
2... Bg7 {[%clk 0:03:01.3]} 3. Nf3 {[%clk 0:02:59.7]} 3... d6 {[%clk 0:02:58.1]}
4. Bc4 {[%clk 0:03:00.2]} 4... e6 {[%clk 0:02:54.4]} 5. Bb3 {[%clk 0:03:00.1]}
5... Nf6 {[%clk 0:02:53.1]} 6. Nbd2 {[%clk 0:02:44.4]} 6... O-O {[%clk
0:02:48.4]} 7. O-O {[%clk 0:02:44.7]} 7... b6 {[%clk 0:02:49.6]} 8. c3 {[%clk
0:02:43.5]} 8... Bb7 {[%clk 0:02:49.9]} 9. Qe2 {[%clk 0:02:43.2]} 9... c5 {[%clk
0:02:42.4]} 10. Re1 {[%clk 0:02:29.6]} 10... Nc6 {[%clk 0:02:36.2]} 11. e5
{[%clk 0:02:16]} 11... dxe5 {[%clk 0:02:34.5]} 12. dxe5 {[%clk 0:02:16.9]} 12...
Nd7 {[%clk 0:02:30.5]} 13. Nc4 {[%clk 0:02:15]} 13... Ba6 {[%clk 0:02:24.6]} 14.
Bf4 {[%clk 0:02:06.2]} 14... Qc7 {[%clk 0:02:08.8]} 15. Qe4 {[%clk 0:01:50.1]}
15... b5 {[%clk 0:01:54.9]} 16. Nd6 {[%clk 0:01:42.7]} 16... c4 {[%clk
0:01:55.4]} 17. Bc2 {[%clk 0:01:40.6]} 17... Rad8 {[%clk 0:01:47.4]} 18. Rad1
{[%clk 0:01:38.4]} 18... Nc5 {[%clk 0:01:32.8]} 19. Qe3 {[%clk 0:01:36.4]} 19...
Qb6 {[%clk 0:01:34]} 20. h4 {[%clk 0:01:27.7]} 20... b4 {[%clk 0:01:31.4]} 21.
h5 {[%clk 0:01:20.1]} 21... Nd3 {[%clk 0:01:28.9]} 22. Qxb6 {[%clk 0:00:47.6]}
22... axb6 {[%clk 0:01:26.8]} 23. Bxd3 {[%clk 0:00:48.3]} 23... cxd3 {[%clk
0:01:28.7]} 24. c4 {[%clk 0:00:47.7]} 24... gxh5 {[%clk 0:01:06.9]} 25. b3
{[%clk 0:00:44.3]} 25... f6 {[%clk 0:00:54.9]} 26. exf6 {[%clk 0:00:38]} 26...
Rxf6 {[%clk 0:00:45]} 27. Bg3 {[%clk 0:00:35.1]} 27... e5 {[%clk 0:00:36.1]} 28.
Ne4 {[%clk 0:00:28.4]} 28... Rf5 {[%clk 0:00:35.6]} 29. Re3 {[%clk 0:00:26.8]}
29... Bb7 {[%clk 0:00:17.8]} 30. Rexd3 {[%clk 0:00:22.1]} 30... Rxd3 {[%clk
0:00:19.6]} 31. Rxd3 {[%clk 0:00:22.6]} 31... Nd4 {[%clk 0:00:21.5]} 32. Nfd2
{[%clk 0:00:17.2]} 32... Rf8 {[%clk 0:00:18.1]} 33. Kh2 {[%clk 0:00:15.2]} 33...
Ra8 {[%clk 0:00:18.4]} 34. Nd6 {[%clk 0:00:13.3]} 34... Bc6 {[%clk 0:00:17.5]}
35. f4 {[%clk 0:00:12.6]} 35... exf4 {[%clk 0:00:16]} 36. Bxf4 {[%clk
0:00:13.6]} 36... Rxa2 {[%clk 0:00:17.9]} 37. N2e4 {[%clk 0:00:13.8]} 37... Nf5
{[%clk 0:00:07]} 38. Nxf5 {[%clk 0:00:11.7]} 38... Rxg2+ {[%clk 0:00:08.2]} 39.
Kh3 {[%clk 0:00:08.6]} 39... Bxe4 {[%clk 0:00:10.1]} 40. Rd8+ {[%clk 0:00:09.5]}
40... Kf7 {[%clk 0:00:06.4]} 41. Nxg7 {[%clk 0:00:05.6]} 41... Kxg7 {[%clk
0:00:05.8]} 42. Rd7+ {[%clk 0:00:06.6]} 42... Kf6 {[%clk 0:00:07]} 43. Rd6+
{[%clk 0:00:07.5]} 43... Kf5 {[%clk 0:00:08.2]} 44. Bg3 {[%clk 0:00:08.8]} 44...
Rb2 {[%clk 0:00:09.1]} 45. Rxb6 {[%clk 0:00:09.9]} 45... Rxb3 {[%clk 0:00:10.4]}
46. Rb5+ {[%clk 0:00:11.5]} 46... Kg6 {[%clk 0:00:11.1]} 47. Kh4 {[%clk
0:00:13]} 47... Rb1 {[%clk 0:00:05.7]} 48. Rb6+ {[%clk 0:00:11.4]} 48... Kf5
{[%clk 0:00:07]} 49. Rb5+ {[%clk 0:00:08.8]} 49... Kf6 {[%clk 0:00:08.3]} 50.
Kxh5 {[%clk 0:00:09.2]} 50... Bf3+ {[%clk 0:00:07]} 51. Kh4 {[%clk 0:00:07.3]}
51... Rh1+ {[%clk 0:00:07.8]} 52. Bh2 {[%clk 0:00:08.9]} 52... Rxh2+ {[%clk
0:00:08.6]} 53. Kg3 {[%clk 0:00:10.3]} 53... Bc6 {[%clk 0:00:07.6]} 54. Rb6
{[%clk 0:00:09.8]} 54... Rg2+ {[%clk 0:00:08.6]} 55. Kh3 {[%clk 0:00:11]} 55...
Rg6 {[%clk 0:00:07.8]} 56. Rxc6+ {[%clk 0:00:12.1]} 56... Ke5 {[%clk 0:00:09.6]}
57. Rc7 {[%clk 0:00:13.3]} 57... Kd4 {[%clk 0:00:08.8]} 58. Rxh7 {[%clk
0:00:10.1]} 58... Kxc4 {[%clk 0:00:09.7]} 59. Rc7+ {[%clk 0:00:11.6]} 59... Kb3
{[%clk 0:00:10.7]} 0-1

[Event "*** Titled Tuesday Blitz"]
[Site "Chess.com"]
[Date "2018.06.05"]
[Round "7"]
[White "bugsbunny444"]
[Black "nurmiTV"]
[Result "1-0"]
[WhiteElo "2360"]
[BlackElo "2486"]
[TimeControl "180+2"]
[EndTime "14:43:12 PDT"]
[Termination "bugsbunny444 won by resignation"]

1. Nf3 {[%clk 0:03:01.9]} 1... c5 {[%clk 0:02:59.2]} 2. c4 {[%clk 0:03:02.8]}
2... g6 {[%clk 0:02:59.9]} 3. d4 {[%clk 0:03:03.4]} 3... cxd4 {[%clk 0:03:00.8]}
4. Nxd4 {[%clk 0:03:05.3]} 4... Bg7 {[%clk 0:03:01.9]} 5. e4 {[%clk 0:03:06.8]}
5... Qb6 {[%clk 0:02:57.2]} 6. Nb5 {[%clk 0:02:54]} 6... a6 {[%clk 0:02:52.4]}
7. Be3 {[%clk 0:02:41.8]} 7... Qa5+ {[%clk 0:02:48]} 8. Bd2 {[%clk 0:02:37.2]}
8... Qd8 {[%clk 0:02:43.7]} 9. Bc3 {[%clk 0:02:32]} 9... Nf6 {[%clk 0:02:43.7]}
10. N5a3 {[%clk 0:02:12.1]} 10... O-O {[%clk 0:02:40.7]} 11. Nd2 {[%clk
0:02:08.4]} 11... Nc6 {[%clk 0:02:35.1]} 12. Be2 {[%clk 0:01:59.6]} 12... e6
{[%clk 0:02:27.8]} 13. O-O {[%clk 0:01:58.1]} 13... d5 {[%clk 0:02:27.4]} 14.
exd5 {[%clk 0:01:52.6]} 14... exd5 {[%clk 0:02:29.3]} 15. cxd5 {[%clk
0:01:53.5]} 15... Qxd5 {[%clk 0:02:27.8]} 16. Bf3 {[%clk 0:01:49.1]} 16... Qf5
{[%clk 0:02:23]} 17. Nac4 {[%clk 0:01:36.5]} 17... Rd8 {[%clk 0:02:04.3]} 18.
Bxc6 {[%clk 0:01:10.1]} 18... bxc6 {[%clk 0:02:01.7]} 19. Qf3 {[%clk 0:01:11.1]}
19... Qxf3 {[%clk 0:01:51.9]} 20. Nxf3 {[%clk 0:01:11.7]} 20... Be6 {[%clk
0:01:52]} 21. Na5 {[%clk 0:01:08.9]} 21... Bd5 {[%clk 0:01:49]} 22. Nd4 {[%clk
0:00:48.1]} 22... c5 {[%clk 0:01:31]} 23. Ndc6 {[%clk 0:00:37.8]} 23... Re8
{[%clk 0:01:05.7]} 24. Rfd1 {[%clk 0:00:38.7]} 24... Be4 {[%clk 0:00:59.7]} 25.
f3 {[%clk 0:00:37.5]} 25... Bf5 {[%clk 0:00:56]} 26. Re1 {[%clk 0:00:25.3]}
26... Kf8 {[%clk 0:00:40.9]} 27. Be5 {[%clk 0:00:17.1]} 27... Re6 {[%clk
0:00:23.6]} 28. g4 {[%clk 0:00:14.3]} 28... Bd3 {[%clk 0:00:20.5]} 29. Rad1
{[%clk 0:00:09.4]} 29... c4 {[%clk 0:00:20]} 30. Nb4 {[%clk 0:00:05.6]} 30...
Rd8 {[%clk 0:00:17.5]} 31. Nxc4 {[%clk 0:00:05.1]} 31... Bxc4 {[%clk 0:00:05.6]}
32. Rxd8+ {[%clk 0:00:05.8]} 32... Ne8 {[%clk 0:00:07.5]} 33. Bxg7+ {[%clk
0:00:06.3]} 33... Ke7 {[%clk 0:00:09.1]} 34. Rxe6+ {[%clk 0:00:07.4]} 34... Bxe6
{[%clk 0:00:09]} 35. Rxe8+ {[%clk 0:00:07.3]} 35... Kxe8 {[%clk 0:00:10.2]} 36.
Bd4 {[%clk 0:00:06]} 36... a5 {[%clk 0:00:11.6]} 37. Nd3 {[%clk 0:00:07.1]}
37... Bxa2 {[%clk 0:00:13.1]} 38. Bc3 {[%clk 0:00:08.4]} 38... a4 {[%clk
0:00:14]} 39. Nc5 {[%clk 0:00:09.4]} 39... Bd5 {[%clk 0:00:14.9]} 40. Kf2 {[%clk
0:00:10]} 40... Bc6 {[%clk 0:00:16.3]} 41. Ke3 {[%clk 0:00:10.8]} 41... Ke7
{[%clk 0:00:17.7]} 42. g5 {[%clk 0:00:11.8]} 42... Kd6 {[%clk 0:00:17.2]} 43.
Ne4+ {[%clk 0:00:12.7]} 43... Ke6 {[%clk 0:00:17.6]} 44. f4 {[%clk 0:00:13.4]}
44... Kf5 {[%clk 0:00:18.5]} 45. Nd6+ {[%clk 0:00:13.9]} 45... Ke6 {[%clk
0:00:19]} 46. Nc4 {[%clk 0:00:11.9]} 46... Kf5 {[%clk 0:00:18.6]} 47. Ne5 {[%clk
0:00:09.9]} 47... Be8 {[%clk 0:00:19.5]} 48. Kf3 {[%clk 0:00:09.9]} 48... f6
{[%clk 0:00:20.5]} 49. gxf6 {[%clk 0:00:10]} 49... Kxf6 {[%clk 0:00:22.4]} 50.
Nd7+ {[%clk 0:00:09.3]} 50... Kf5 {[%clk 0:00:21.6]} 51. Nc5 {[%clk 0:00:08.9]}
51... h6 {[%clk 0:00:21.1]} 52. Kg3 {[%clk 0:00:06.9]} 52... Bc6 {[%clk
0:00:21]} 53. Nd3 {[%clk 0:00:06.4]} 53... Ke4 {[%clk 0:00:20.7]} 54. Ne5 {[%clk
0:00:07.7]} 54... Be8 {[%clk 0:00:22.2]} 55. Nc4 {[%clk 0:00:07.9]} 55... Kd3
{[%clk 0:00:22.8]} 56. Ne5+ {[%clk 0:00:08.6]} 56... Kc2 {[%clk 0:00:23.9]} 57.
Bd4 {[%clk 0:00:08.4]} 57... Kb3 {[%clk 0:00:23.1]} 58. Nf3 {[%clk 0:00:06.1]}
58... a3 {[%clk 0:00:22.4]} 59. bxa3 {[%clk 0:00:06.8]} 59... Kxa3 {[%clk
0:00:24.3]} 60. Bg7 {[%clk 0:00:07.9]} 60... h5 {[%clk 0:00:24.3]} 61. Kh4
{[%clk 0:00:09.4]} 61... Kb3 {[%clk 0:00:24.2]} 62. Kg5 {[%clk 0:00:10.3]} 62...
Kc4 {[%clk 0:00:24.8]} 63. Ne5+ {[%clk 0:00:11.4]} 63... Kd5 {[%clk 0:00:25.2]}
64. Nxg6 {[%clk 0:00:13]} 64... Ke4 {[%clk 0:00:26.6]} 65. f5 {[%clk 0:00:13.1]}
65... Kf3 {[%clk 0:00:26.5]} 66. Kxh5 {[%clk 0:00:10.6]} 66... Ke4 {[%clk
0:00:26]} 67. Kg5 {[%clk 0:00:11.4]} 67... Kd5 {[%clk 0:00:26.5]} 68. h4 {[%clk
0:00:11.2]} 1-0

[Event "*** Titled Tuesday Blitz"]
[Site "Chess.com"]
[Date "2018.06.05"]
[Round "7"]
[White "Kubas1010"]
[Black "Jbd735"]
[Result "1/2-1/2"]
[WhiteElo "2379"]
[BlackElo "2375"]
[TimeControl "180+2"]
[EndTime "14:43:20 PDT"]
[Termination "Game drawn - insufficient material"]

1. d4 {[%clk 0:03:01.2]} 1... d5 {[%clk 0:03:00]} 2. c4 {[%clk 0:03:02.1]} 2...
e6 {[%clk 0:03:00.6]} 3. Nf3 {[%clk 0:03:02.2]} 3... c6 {[%clk 0:03:00.7]} 4. g3
{[%clk 0:03:02.4]} 4... Nf6 {[%clk 0:03:00.9]} 5. Bg2 {[%clk 0:03:03.8]} 5...
dxc4 {[%clk 0:03:00.3]} 6. O-O {[%clk 0:03:04.8]} 6... b5 {[%clk 0:02:59.7]} 7.
Ne5 {[%clk 0:02:54.4]} 7... Bb7 {[%clk 0:02:59.3]} 8. a4 {[%clk 0:02:54.6]} 8...
a6 {[%clk 0:02:47.7]} 9. b3 {[%clk 0:02:51.3]} 9... cxb3 {[%clk 0:02:46.4]} 10.
Bb2 {[%clk 0:02:48.2]} 10... Nbd7 {[%clk 0:02:04.9]} 11. Nxd7 {[%clk 0:02:45.1]}
11... Qxd7 {[%clk 0:02:00.3]} 12. Nd2 {[%clk 0:02:45.2]} 12... c5 {[%clk
0:01:49.3]} 13. Bxb7 {[%clk 0:02:45]} 13... Qxb7 {[%clk 0:01:49.3]} 14. Qxb3
{[%clk 0:02:45.9]} 14... Rb8 {[%clk 0:01:40.3]} 15. dxc5 {[%clk 0:02:36.4]}
15... Bxc5 {[%clk 0:01:37.7]} 16. Bxf6 {[%clk 0:02:30]} 16... gxf6 {[%clk
0:01:37.9]} 17. axb5 {[%clk 0:02:23.7]} 17... axb5 {[%clk 0:01:37.3]} 18. Rfc1
{[%clk 0:02:12.5]} 18... Bd4 {[%clk 0:01:34.8]} 19. Rab1 {[%clk 0:02:12]} 19...
O-O {[%clk 0:01:09]} 20. e3 {[%clk 0:02:12.6]} 20... Be5 {[%clk 0:01:07]} 21.
Rc5 {[%clk 0:02:12.2]} 21... b4 {[%clk 0:00:39.8]} 22. Rc4 {[%clk 0:02:09.4]}
22... Qd5 {[%clk 0:00:32.4]} 23. Rg4+ {[%clk 0:02:07.3]} 23... Kh8 {[%clk
0:00:32.2]} 24. Qxd5 {[%clk 0:02:02.5]} 24... exd5 {[%clk 0:00:32.9]} 25. Kf1
{[%clk 0:02:00.6]} 25... Rfc8 {[%clk 0:00:25]} 26. Ke2 {[%clk 0:02:00.9]} 26...
Rc2 {[%clk 0:00:15.4]} 27. Rgxb4 {[%clk 0:01:59.2]} 27... Rxb4 {[%clk
0:00:14.7]} 28. Rxb4 {[%clk 0:02:01.1]} 28... Bc3 {[%clk 0:00:14.6]} 29. Rb8+
{[%clk 0:02:01.8]} 29... Kg7 {[%clk 0:00:15.5]} 30. Kd3 {[%clk 0:02:02.9]} 30...
Rxd2+ {[%clk 0:00:14.7]} 31. Kxc3 {[%clk 0:02:04]} 31... Rxf2 {[%clk 0:00:16.2]}
32. Kd4 {[%clk 0:01:50.1]} 32... Rxh2 {[%clk 0:00:11.7]} 33. Kxd5 {[%clk
0:01:47.5]} 33... Rg2 {[%clk 0:00:12.6]} 34. Ke4 {[%clk 0:01:48.4]} 34... Rxg3
{[%clk 0:00:13.2]} 35. Kf4 {[%clk 0:01:49.7]} 35... Rg5 {[%clk 0:00:14]} 36. Ra8
{[%clk 0:01:49.4]} 36... h5 {[%clk 0:00:14.4]} 37. Ra1 {[%clk 0:01:47.8]} 37...
Kg6 {[%clk 0:00:14.5]} 38. Rh1 {[%clk 0:01:47.9]} 38... Rg4+ {[%clk 0:00:15.1]}
39. Kf3 {[%clk 0:01:49]} 39... Kg5 {[%clk 0:00:15.7]} 40. Ra1 {[%clk 0:01:49.8]}
40... h4 {[%clk 0:00:15]} 41. Ra7 {[%clk 0:01:49.4]} 41... Rg3+ {[%clk
0:00:13.8]} 42. Kf2 {[%clk 0:01:50]} 42... Kg6 {[%clk 0:00:12.8]} 43. Ra4 {[%clk
0:01:50.2]} 43... Rh3 {[%clk 0:00:10]} 44. Rg4+ {[%clk 0:01:49.6]} 44... Kf5
{[%clk 0:00:09.4]} 45. Rf4+ {[%clk 0:01:50.8]} 45... Kg5 {[%clk 0:00:08.8]} 46.
Ke2 {[%clk 0:01:49.8]} 46... f5 {[%clk 0:00:08.9]} 47. Kf2 {[%clk 0:01:50.7]}
47... Rg3 {[%clk 0:00:08.2]} 48. Ra4 {[%clk 0:01:42.7]} 48... Rg4 {[%clk
0:00:07.9]} 49. Ra8 {[%clk 0:01:43.7]} 49... h3 {[%clk 0:00:06.7]} 50. Rg8+
{[%clk 0:01:44.5]} 50... Kf6 {[%clk 0:00:04.5]} 51. Rh8 {[%clk 0:01:45.7]} 51...
Rg2+ {[%clk 0:00:03.6]} 52. Kf3 {[%clk 0:01:45.2]} 52... Rh2 {[%clk 0:00:04.4]}
53. Kg3 {[%clk 0:01:45.7]} 53... Rh1 {[%clk 0:00:04.8]} 54. Kf3 {[%clk
0:01:35.5]} 54... Ke5 {[%clk 0:00:04.7]} 55. Rh5 {[%clk 0:01:34.3]} 55... Ke6
{[%clk 0:00:04.7]} 56. Rh6+ {[%clk 0:01:34.5]} 56... Ke5 {[%clk 0:00:05.4]} 57.
Rh4 {[%clk 0:01:35.6]} 57... Rf1+ {[%clk 0:00:05.9]} 58. Ke2 {[%clk 0:01:35.7]}
58... Rh1 {[%clk 0:00:06.8]} 59. Kf3 {[%clk 0:01:37]} 59... h2 {[%clk
0:00:07.5]} 60. Kg2 {[%clk 0:01:35.7]} 60... Re1 {[%clk 0:00:08.2]} 61. Kxh2
{[%clk 0:01:35.8]} 61... Rxe3 {[%clk 0:00:08.7]} 62. Kg2 {[%clk 0:01:37]} 62...
f4 {[%clk 0:00:08]} 63. Rh7 {[%clk 0:01:36.5]} 63... f6 {[%clk 0:00:07.1]} 64.
Kf2 {[%clk 0:01:36.4]} 64... Ra3 {[%clk 0:00:06.3]} 65. Rb7 {[%clk 0:01:30.2]}
65... Kf5 {[%clk 0:00:06.5]} 66. Rg7 {[%clk 0:01:27.1]} 66... Ra2+ {[%clk
0:00:05.5]} 67. Kf3 {[%clk 0:01:27.8]} 67... Ra3+ {[%clk 0:00:06.5]} 68. Kf2
{[%clk 0:01:28.8]} 68... Rb3 {[%clk 0:00:06]} 69. Re7 {[%clk 0:01:27.5]} 69...
f3 {[%clk 0:00:04.7]} 70. Ra7 {[%clk 0:01:24]} 70... Kg5 {[%clk 0:00:05.6]} 71.
Ra4 {[%clk 0:01:20.3]} 71... f5 {[%clk 0:00:06.2]} 72. Rc4 {[%clk 0:01:21.2]}
72... Ra3 {[%clk 0:00:06.6]} 73. Rb4 {[%clk 0:01:21.9]} 73... Rc3 {[%clk
0:00:06]} 74. Ra4 {[%clk 0:01:22.8]} 74... Rd3 {[%clk 0:00:05.7]} 75. Rb4 {[%clk
0:01:22.9]} 75... Ra3 {[%clk 0:00:04.6]} 76. Rc4 {[%clk 0:01:23.9]} 76... f4
{[%clk 0:00:04.9]} 77. Rc8 {[%clk 0:01:23.2]} 77... Kg4 {[%clk 0:00:04]} 78.
Rg8+ {[%clk 0:01:23.9]} 78... Kf5 {[%clk 0:00:04.8]} 79. Rf8+ {[%clk 0:01:25.2]}
79... Ke5 {[%clk 0:00:06]} 80. Re8+ {[%clk 0:01:26]} 80... Kd6 {[%clk
0:00:07.1]} 81. Rd8+ {[%clk 0:01:26.4]} 81... Ke7 {[%clk 0:00:07.6]} 82. Rd4
{[%clk 0:01:27.1]} 82... Ke6 {[%clk 0:00:07.8]} 83. Rxf4 {[%clk 0:01:28]} 83...
Ke5 {[%clk 0:00:08.9]} 84. Rxf3 {[%clk 0:01:29.1]} 84... Rxf3+ {[%clk
0:00:08.8]} 85. Kxf3 {[%clk 0:01:30.9]} 1/2-1/2

[Event "*** Titled Tuesday Blitz"]
[Site "Chess.com"]
[Date "2018.06.05"]
[Round "7"]
[White "BartoszSocko"]
[Black "nihalsarin"]
[Result "1/2-1/2"]
[WhiteElo "2636"]
[BlackElo "2752"]
[TimeControl "180+2"]
[EndTime "14:43:28 PDT"]
[Termination "Game drawn by stalemate"]

1. e4 {[%clk 0:03:01.9]} 1... c6 {[%clk 0:02:56.5]} 2. d4 {[%clk 0:03:02.3]}
2... d5 {[%clk 0:02:58]} 3. exd5 {[%clk 0:03:04.2]} 3... cxd5 {[%clk 0:02:58.2]}
4. Bd3 {[%clk 0:03:05.4]} 4... Nc6 {[%clk 0:02:59.4]} 5. c3 {[%clk 0:03:06.8]}
5... Nf6 {[%clk 0:02:59.9]} 6. h3 {[%clk 0:03:07.1]} 6... e5 {[%clk 0:02:55.8]}
7. dxe5 {[%clk 0:03:05.5]} 7... Nxe5 {[%clk 0:02:57.7]} 8. Qe2 {[%clk 0:03:07]}
8... Qe7 {[%clk 0:02:56.8]} 9. Bb5+ {[%clk 0:03:06.1]} 9... Bd7 {[%clk
0:02:57.4]} 10. Be3 {[%clk 0:03:05.4]} 10... a6 {[%clk 0:02:54.5]} 11. Bxd7+
{[%clk 0:03:06.3]} 11... Nexd7 {[%clk 0:02:54.7]} 12. Nf3 {[%clk 0:03:05.6]}
12... g6 {[%clk 0:02:40.6]} 13. O-O {[%clk 0:03:01.4]} 13... Bg7 {[%clk
0:02:42]} 14. Re1 {[%clk 0:03:01.4]} 14... O-O {[%clk 0:02:43]} 15. Nbd2 {[%clk
0:03:01.9]} 15... Rfe8 {[%clk 0:02:42.6]} 16. Qd3 {[%clk 0:03:00]} 16... Nc5
{[%clk 0:02:42.6]} 17. Bxc5 {[%clk 0:02:58.5]} 17... Qxc5 {[%clk 0:02:43.3]} 18.
Nb3 {[%clk 0:02:58.6]} 18... Qb6 {[%clk 0:02:43.8]} 19. Qd4 {[%clk 0:02:50.8]}
19... Qxd4 {[%clk 0:02:39.3]} 20. Nfxd4 {[%clk 0:02:49.6]} 20... Ne4 {[%clk
0:02:40.1]} 21. f3 {[%clk 0:02:43.7]} 21... Nd6 {[%clk 0:02:39.8]} 22. Nc5
{[%clk 0:02:26.2]} 22... Bxd4+ {[%clk 0:02:16.7]} 23. cxd4 {[%clk 0:02:28.1]}
23... Nf5 {[%clk 0:02:18.3]} 24. b3 {[%clk 0:01:16.4]} 24... Nxd4 {[%clk
0:01:47.7]} 25. Rxe8+ {[%clk 0:01:16.8]} 25... Rxe8 {[%clk 0:01:48.1]} 26. Rd1
{[%clk 0:01:18.7]} 26... Nf5 {[%clk 0:01:38.8]} 27. Nxb7 {[%clk 0:01:07.9]}
27... Re2 {[%clk 0:01:37.9]} 28. a4 {[%clk 0:00:56.4]} 28... Ne3 {[%clk
0:01:33.7]} 29. Rd3 {[%clk 0:00:56.8]} 29... Rxg2+ {[%clk 0:01:34.3]} 30. Kh1
{[%clk 0:00:58.3]} 30... Re2 {[%clk 0:01:35.4]} 31. Nc5 {[%clk 0:00:55.4]} 31...
Nc2 {[%clk 0:00:59.9]} 32. Nxa6 {[%clk 0:00:53.1]} 32... Ne1 {[%clk 0:01:00.8]}
33. Rc3 {[%clk 0:00:43.8]} 33... d4 {[%clk 0:01:02.2]} 34. Rc8+ {[%clk
0:00:44.8]} 34... Kg7 {[%clk 0:01:03.7]} 35. Kg1 {[%clk 0:00:46]} 35... d3
{[%clk 0:01:02.3]} 36. Rd8 {[%clk 0:00:47]} 36... Nxf3+ {[%clk 0:00:51]} 37. Kf1
{[%clk 0:00:48.3]} 37... Nh2+ {[%clk 0:00:52.5]} 38. Kg1 {[%clk 0:00:49.8]}
38... d2 {[%clk 0:00:54.1]} 39. Nc5 {[%clk 0:00:37.8]} 39... Nf3+ {[%clk
0:00:44]} 40. Kf1 {[%clk 0:00:38.9]} 40... Re1+ {[%clk 0:00:44.5]} 41. Kf2
{[%clk 0:00:40.2]} 41... d1=Q {[%clk 0:00:46.1]} 42. Rxd1 {[%clk 0:00:40.9]}
42... Rxd1 {[%clk 0:00:48]} 43. Kxf3 {[%clk 0:00:42.4]} 43... Rc1 {[%clk
0:00:39.5]} 44. b4 {[%clk 0:00:43.4]} 44... Rc3+ {[%clk 0:00:40.7]} 45. Ke2
{[%clk 0:00:41.3]} 45... Rxh3 {[%clk 0:00:33.3]} 46. b5 {[%clk 0:00:42.5]} 46...
Rc3 {[%clk 0:00:31.8]} 47. Nd3 {[%clk 0:00:33.6]} 47... Rb3 {[%clk 0:00:28]} 48.
Kd2 {[%clk 0:00:31.7]} 48... Ra3 {[%clk 0:00:16.3]} 49. b6 {[%clk 0:00:28.3]}
49... Rb3 {[%clk 0:00:17.1]} 50. a5 {[%clk 0:00:29.1]} 50... Rb5 {[%clk
0:00:18.6]} 51. Kc3 {[%clk 0:00:17.7]} 51... Rxa5 {[%clk 0:00:19.2]} 52. Kc4
{[%clk 0:00:18.6]} 52... Ra6 {[%clk 0:00:17.6]} 53. Kc5 {[%clk 0:00:20]} 53...
Rxb6 {[%clk 0:00:18.1]} 54. Kxb6 {[%clk 0:00:21.9]} 54... h5 {[%clk 0:00:19.5]}
55. Kc5 {[%clk 0:00:23.3]} 55... h4 {[%clk 0:00:19.9]} 56. Kd4 {[%clk
0:00:23.9]} 56... Kf6 {[%clk 0:00:21.5]} 57. Ke4 {[%clk 0:00:24.2]} 57... g5
{[%clk 0:00:23.1]} 58. Kf3 {[%clk 0:00:16.4]} 58... Kf5 {[%clk 0:00:23.9]} 59.
Nf2 {[%clk 0:00:17.8]} 59... f6 {[%clk 0:00:25]} 60. Ng4 {[%clk 0:00:17.3]}
60... Kg6 {[%clk 0:00:26.6]} 61. Kg2 {[%clk 0:00:14.2]} 61... f5 {[%clk
0:00:27.4]} 62. Ne5+ {[%clk 0:00:13.5]} 62... Kf6 {[%clk 0:00:28.7]} 63. Nf3
{[%clk 0:00:14.9]} 63... h3+ {[%clk 0:00:29.2]} 64. Kxh3 {[%clk 0:00:14.5]}
64... g4+ {[%clk 0:00:28.1]} 65. Kg3 {[%clk 0:00:15.9]} 65... gxf3 {[%clk
0:00:30]} 66. Kxf3 {[%clk 0:00:17.8]} 66... Kg5 {[%clk 0:00:31.9]} 67. Kg3
{[%clk 0:00:19]} 67... f4+ {[%clk 0:00:33.8]} 68. Kf3 {[%clk 0:00:20.5]} 68...
Kf5 {[%clk 0:00:35.7]} 69. Kf2 {[%clk 0:00:20.8]} 69... Ke4 {[%clk 0:00:37.6]}
70. Ke2 {[%clk 0:00:22]} 70... f3+ {[%clk 0:00:39.5]} 71. Kf2 {[%clk 0:00:23.2]}
71... Kf4 {[%clk 0:00:41.4]} 72. Kf1 {[%clk 0:00:18.2]} 72... Kg3 {[%clk
0:00:43.3]} 73. Kg1 {[%clk 0:00:19.5]} 73... f2+ {[%clk 0:00:45.2]} 74. Kf1
{[%clk 0:00:20.9]} 74... Kf3 {[%clk 0:00:47.1]} 1/2-1/2